bitfinex/quotes_SOLUSD_20260222
["timestamp","ask_amount","ask_price","bid_price","bid_amount"]
[1771751208286,0.45942688,85.085,85.053,0.08566959]
[1771751208671,0.45942688,85.085,85.06,2.97284016]
[1771751208981,0.45942688,85.085,85.06,3.05850975]
[1771751212384,0.45942688,85.085,85.045,2.1]
[1771751212385,0.45942688,85.083,85.041,0.08566959]
[1771751212595,0.45942688,85.069,85.041,11.75903387]
[1771751214776,0.45942688,85.068,85.041,11.75903387]
[1771751219999,0.45942688,85.068,85.04,2.97434475]
[1771751222584,0.45942688,85.068,85.041,11.75903387]
[1771751229409,0.48545318,85.066,85.037,0.08566959]
[1771751229623,0.48545318,85.066,85.04,2.97434475]
[1771751230314,0.48545318,85.066,85.041,0.08566959]
[1771751232519,11.75571621,85.065,85.041,0.08566959]
[1771751232816,0.48545318,85.064,85.041,0.08566959]
[1771751233613,0.48545318,85.064,85.05,2.97434475]
[1771751235022,0.48387938,85.062,85.05,2.97434475]
[1771751235521,0.48387938,85.062,85.041,0.08566959]
[1771751252932,0.48387938,85.06,85.041,0.08566959]
[1771751253125,0.48387938,85.06,85.04,2.97434475]
[1771751255234,0.48387938,85.06,85.04,3.06001434]
[1771751263237,0.48387938,85.06,85.04,14.81908992]
[1771751264040,0.48387938,85.06,85.041,0.08566959]
[1771751282079,0.4571652,85.059,85.036,11.75970068]
[1771751282252,0.4571652,85.059,85.04,2.97439714]
[1771751282859,0.4571652,85.059,85.035,0.08566959]
[1771751283172,0.4571652,85.059,85.04,2.97439714]
[1771751296290,11.75650308,85.06,85.013,0.08566959]
[1771751296291,0.46003027,85.057,85.013,0.08566959]
[1771751296472,2.97439714,85.05,85.014,0.08566959]
[1771751296789,0.46003027,85.049,85.014,0.08566959]
[1771751297383,0.46003027,85.049,85.02,2.97439714]
[1771751298486,11.75806603,85.048,85.02,2.97439714]
[1771751298675,0.46003027,85.047,85.02,2.97439714]
[1771751300596,0.46003027,85.045,85.02,2.97439714]
[1771751302799,11.75861906,85.044,85.02,2.97439714]
[1771751302993,0.46003027,85.043,85.02,2.97439714]
[1771751304215,0.46003027,85.041,85.021,0.08566959]
[1771751304387,0.46003027,85.046,85.031,0.08566959]
[1771751304587,0.46003027,85.046,85.022,0.08566959]
[1771751304900,0.46003027,85.05,85.022,0.08566959]
[1771751305306,0.46003027,85.05,85.031,0.08566959]
[1771751306603,11.75792778,85.049,85.031,0.08566959]
[1771751306805,0.46003027,85.048,85.031,0.08566959]
[1771751315304,0.46003027,85.046,85.022,0.08566959]
[1771751328017,0.48063123,85.044,85.022,0.08566959]
[1771751328223,0.48063123,85.044,85.021,11.76180002]
[1771751329342,0.48063123,85.044,85.017,0.08566959]
[1771751332550,0.48063123,85.044,85.021,11.76180002]
[1771751335652,0.48063123,85.044,85.02,0.08566959]
[1771751338651,0.48063123,85.044,85.021,11.76180002]
[1771751339750,0.48063123,85.044,85.021,11.84746961]
[1771751341346,0.48063123,85.044,85.022,0.08566959]
[1771751355646,0.46353723,85.05,85.022,0.08566959]
[1771751355851,11.75766509,85.051,85.031,0.08566959]
[1771751356252,0.46353723,85.054,85.031,0.08566959]
[1771751357566,11.75737481,85.053,85.031,0.08566959]
[1771751357750,0.46353723,85.053,85.031,0.08566959]
[1771751359958,11.75751305,85.052,85.031,0.08566959]
[1771751360666,2.97619888,85.08,85.031,0.08566959]
[1771751360667,11.75391993,85.078,85.041,0.08566959]
[1771751361052,41.13871976,85.078,85.041,0.08566959]
[1771751361253,2.97619888,85.07,85.041,0.08566959]
[1771751361965,11.75516345,85.069,85.041,0.08566959]
[1771751362670,0.46353723,85.068,85.041,0.08566959]
[1771751364379,0.46353723,85.068,85.042,0.49725481]
[1771751365082,11.75543982,85.067,85.042,0.49725481]
[1771751365370,0.46353723,85.066,85.042,0.49725481]
[1771751370081,0.46353723,85.064,85.042,0.49725481]
[1771751370881,0.46353723,85.064,85.041,11.75903387]
[1771751371180,0.46353723,85.064,85.041,12.25628868]
[1771751371660,0.46353723,85.064,85.042,0.49725481]
[1771751372170,0.46353723,85.079,85.042,0.49725481]
[1771751372882,0.46353723,85.079,85.05,2.97619888]
[1771751373075,0.46353723,85.079,85.051,0.49725481]
[1771751373376,11.75391993,85.078,85.051,0.49725481]
[1771751373592,0.46353723,85.077,85.051,0.49725481]
[1771751375976,0.46353723,85.075,85.052,0.49725481]
[1771751376173,3.17619888,85.11,85.071,0.49725481]
[1771751376481,11.74963869,85.109,85.071,0.49725481]
[1771751377361,41.12373543,85.109,85.071,0.49725481]
[1771751378071,0.49174944,85.099,85.071,0.49725481]
[1771751378279,0.49174944,85.089,85.051,0.47039464]
[1771751378482,0.49174944,85.089,85.061,0.47039464]
[1771751379578,0.49174944,85.088,85.062,0.47039464]
[1771751379882,0.49174944,85.088,85.07,2.97619888]
[1771751380082,0.49174944,85.088,85.071,0.47039464]
[1771751386095,0.49174944,85.086,85.071,0.47039464]
[1771751388391,0.49174944,85.097,85.071,0.47039464]
[1771751390782,0.49174944,85.095,85.071,0.47039464]
[1771751391180,11.75143367,85.096,85.081,0.47039464]
[1771751392385,0.49174944,85.099,85.081,0.47039464]
[1771751393296,0.49174944,85.099,85.072,0.47039464]
[1771751393599,0.49174944,85.097,85.072,0.47039464]
[1771751395181,12.24318311,85.096,85.072,0.47039464]
[1771751395380,0.49174944,85.095,85.074,0.47039464]
[1771751395601,11.75084994,85.101,85.081,0.47039464]
[1771751396403,0.49174944,85.1,85.081,0.47039464]
[1771751397501,11.7510194,85.099,85.081,0.47039464]
[1771751400302,11.7498193,85.108,85.083,0.47039464]
[1771751400489,11.7498193,85.108,85.09,2.97619888]
[1771751400694,11.7498193,85.108,85.091,0.47039464]
[1771751403690,0.49174944,85.107,85.081,0.47039464]
[1771751405307,11.75005287,85.106,85.081,0.47039464]
[1771751405508,0.49174944,85.105,85.081,0.47039464]
[1771751408299,11.750329,85.104,85.081,0.47039464]
[1771751408601,0.49902222,85.103,85.081,0.47039464]
[1771751415811,0.45625678,85.107,85.081,0.47039464]
[1771751419728,11.75005287,85.106,85.081,0.47039464]
[1771751419929,0.45625678,85.105,85.081,0.47039464]
[1771751422925,0.45625678,85.103,85.081,0.47039464]
[1771751429814,0.45625678,85.101,85.072,0.49534491]
[1771751432032,11.75088131,85.1,85.072,0.49534491]
[1771751432334,0.45625678,85.099,85.072,0.49534491]
[1771751433232,2.97207414,85.09,85.07,2.1]
[1771751433531,0.45625678,85.089,85.062,0.49534491]
[1771751434420,11.75253854,85.088,85.062,12.25142236]
[1771751434621,0.45625678,85.087,85.063,0.49534491]
[1771751437620,0.45625678,85.085,85.057,0.49534491]
[1771751439838,0.45625678,85.085,85.059,0.4968736]
[1771751442042,0.45625678,85.085,85.061,0.4968736]
[1771751446343,0.45625678,85.085,85.062,11.75613082]
[1771751446533,0.45625678,85.085,85.063,0.4968736]
[1771751456759,0.45858131,85.083,85.063,0.4968736]
[1771751463746,0.45858131,85.088,85.063,0.4968736]
[1771751466460,0.45858131,85.086,85.063,0.4968736]
[1771751479657,11.75267667,85.087,85.065,0.48184132]
[1771751480972,11.75145355,85.096,85.071,0.48184132]
[1771751481176,11.75145355,85.096,85.081,0.48184132]
[1771751481863,12.24760883,85.096,85.081,0.48184132]
[1771751483070,0.49615528,85.095,85.081,0.48184132]
[1771751484880,0.49615528,85.089,85.061,0.48184132]
[1771751486381,0.49615528,85.087,85.054,0.48184132]
[1771751486672,0.49615528,85.079,85.054,0.48184132]
[1771751487972,0.49615528,85.077,85.054,0.48184132]
[1771751496187,11.75419624,85.076,85.054,0.48184132]
[1771751496483,0.49615528,85.075,85.054,0.48184132]
[1771751499089,0.46262367,85.073,85.054,0.48184132]
[1771751501984,11.75474891,85.072,85.043,0.45677905]
[1771751502191,0.46262367,85.071,85.043,0.45677905]
[1771751502384,2.97323929,85.07,85.043,0.45677905]
[1771751502690,0.46262367,85.069,85.043,0.45677905]
[1771751503677,0.46262367,85.069,85.04,11.75917215]
[1771751504290,0.46262367,85.067,85.04,12.2159512]
[1771751504671,0.46262367,85.067,85.04,11.75917215]
[1771751504874,0.46262367,85.067,85.041,0.45677905]
[1771751507787,0.46262367,85.067,85.042,11.7588956]
[1771751508094,0.46262367,85.067,85.043,0.45677905]
[1771751509495,29.38134637,85.088,85.051,0.45677905]
[1771751510383,11.75267667,85.087,85.051,0.45677905]
[1771751510784,2.97323929,85.08,85.051,0.45677905]
[1771751511384,0.46262367,85.077,85.051,0.45677905]
[1771751513792,0.46262367,85.075,85.051,0.45677905]
[1771751518401,0.46262367,85.075,85.053,0.45677905]
[1771751519097,0.46262367,85.085,85.053,0.45677905]
[1771751519691,0.46262367,85.083,85.053,0.45677905]
[1771751524806,0.46262367,85.081,85.053,0.45677905]
[1771751525105,0.46262367,85.079,85.053,0.45677905]
[1771751525990,0.46262367,85.077,85.053,0.45677905]
[1771751528209,0.49816825,85.075,85.053,0.45677905]
[1771751532214,0.49816825,85.073,85.053,0.45677905]
[1771751533116,0.49816825,85.073,85.051,0.45026145]
[1771751534415,0.45001393,85.071,85.051,0.45026145]
[1771751537122,11.75502527,85.07,85.051,0.45026145]
[1771751537421,0.45001393,85.069,85.051,0.45026145]
[1771751542026,0.45001393,85.067,85.045,0.45026145]
[1771751551823,0.45001393,85.067,85.046,11.75834254]
[1771751552029,0.45001393,85.067,85.047,0.45026145]
[1771751557644,0.45001393,85.077,85.049,0.45026145]
[1771751558311,0.45001393,85.077,85.049,0.48621009]
[1771751559015,0.45001393,85.077,85.05,11.75778953]
[1771751559634,0.45001393,85.077,85.05,12.24399962]
[1771751561328,11.75419624,85.076,85.05,12.24399962]
[1771751561517,0.47784849,85.075,85.05,12.24399962]
[1771751563031,0.02463228,85.073,85.04,0.28432314]
[1771751563416,0.02463228,85.073,85.041,0.48768386]
[1771751563916,0.02463228,85.069,85.041,0.48768386]
[1771751564115,0.02463228,85.069,85.033,0.48768386]
[1771751564716,0.02463228,85.059,85.033,0.48768386]
[1771751569337,0.02463228,85.058,85.033,0.48768386]
[1771751578129,0.02463228,85.058,85.035,0.48768386]
[1771751602457,0.02463228,85.069,85.037,0.48768386]
[1771751602862,2.97563204,85.06,85.037,0.48768386]
[1771751603554,0.02463228,85.059,85.037,0.48768386]
[1771751611050,11.75989012,85.149,85.039,0.48768386]
[1771751611051,0.02463228,85.072,85.039,0.48768386]
[1771751611266,0.02463228,85.069,85.039,0.48768386]
[1771751616172,0.02463228,85.068,85.041,0.48768386]
[1771751621375,0.02463228,85.068,85.042,11.7588956]
[1771751621578,0.02463228,85.068,85.043,0.48768386]
[1771751623493,0.02463228,85.068,85.045,0.48768386]
[1771751629668,0.02463228,85.059,85.041,0.48768386]
[1771751629873,2.97563204,85.05,85.034,11.75990386]
[1771751630094,3.44572083,85.05,85.034,11.75990386]
[1771751630390,0.47008879,85.05,85.034,11.75990386]
[1771751630584,0.47008879,85.059,85.034,11.75990386]
[1771751631384,2.97563204,85.05,85.02,0.28432314]
[1771751631587,0.47008879,85.049,85.02,0.28432314]
[1771751631782,0.47008879,85.049,85.021,0.46229875]
[1771751633791,0.47008879,85.049,85.023,0.46229875]
[1771751635287,0.47008879,85.049,85.024,11.76138502]
[1771751635485,0.47008879,85.049,85.025,0.46229875]
[1771751636578,0.47008879,85.049,85.026,11.76110836]
[1771751636792,0.47008879,85.049,85.027,0.46229875]
[1771751639598,0.47008879,85.049,85.028,11.76083172]
[1771751639779,0.47008879,85.049,85.029,0.46229875]
[1771751640691,0.47008879,85.049,85.03,11.76055509]
[1771751640897,0.47008879,85.049,85.031,0.46229875]
[1771751642688,2.97563204,85.08,85.012,0.46229875]
[1771751642689,0.47008879,85.039,85.012,0.46229875]
[1771751642905,0.47008879,85.037,85.012,0.46229875]
[1771751643081,0.47008879,85.029,85.012,0.46229875]
[1771751643777,0.47008879,85.019,84.99,0.1]
[1771751644888,0.47008879,85.018,84.99,0.1]
[1771751645709,0.47008879,85.018,84.991,0.46229875]
[1771751647898,0.47008879,85.018,84.992,11.76581325]
[1771751648098,0.46257714,85.016,84.992,11.76581325]
[1771751648488,0.46257714,85.016,84.993,0.46804467]
[1771751651206,0.46257714,85.034,85.0,2.97854665]
[1771751651502,0.46257714,85.039,85.011,0.46804467]
[1771751652488,0.46257714,85.019,84.995,0.46804467]
[1771751653202,0.46257714,85.019,84.997,0.47903382]
[1771751655314,0.46257714,85.019,84.999,0.47903382]
[1771751655907,0.46257714,85.019,85.001,0.47903382]
[1771751665017,0.47589142,85.017,84.998,0.47903382]
[1771751665909,0.47589142,85.029,85.001,0.47903382]
[1771751667211,0.47589142,85.029,85.003,0.47903382]
[1771751669411,11.75943704,85.039,85.011,0.47903382]
[1771751669621,0.47589142,85.044,85.011,0.47903382]
[1771751670616,0.47589142,85.044,85.013,0.47903382]
[1771751671606,0.47589142,85.044,85.014,11.76276848]
[1771751671801,0.47589142,85.044,85.015,0.47903382]
[1771751673735,0.47589142,85.044,85.017,0.47903382]
[1771751674809,0.47589142,85.044,85.019,0.47903382]
[1771751675906,0.47589142,85.044,85.021,0.47903382]
[1771751677411,11.75830914,85.047,85.021,0.47903382]
[1771751677812,12.23420056,85.047,85.021,0.47903382]
[1771751678014,0.46970917,85.046,85.023,0.47169158]
[1771751679725,0.46970917,85.058,85.023,0.47169158]
[1771751679927,0.46970917,85.058,85.031,0.47169158]
[1771751680128,11.75682189,85.057,85.032,0.47169158]
[1771751680927,12.22653106,85.057,85.032,0.47169158]
[1771751681319,0.46970917,85.056,85.032,0.47169158]
[1771751683341,11.75681553,85.058,85.034,0.47169158]
[1771751688425,0.46970917,85.068,85.034,0.47169158]
[1771751689029,0.46970917,85.068,85.036,0.47169158]
[1771751689229,0.46970917,85.068,85.035,11.75986358]
[1771751689230,0.46970917,85.068,85.041,0.47169158]
[1771751691548,0.46970917,85.066,85.042,0.47169158]
[1771751691927,11.75543982,85.067,85.042,0.47169158]
[1771751692243,0.46970917,85.07,85.042,0.47169158]
[1771751692434,11.75415089,85.077,85.061,0.47169158]
[1771751693933,12.22321465,85.081,85.061,0.47169158]
[1771751694253,0.46970917,85.08,85.061,0.47169158]
[1771751694853,11.75350548,85.081,85.061,0.47169158]
[1771751695052,12.22321465,85.081,85.061,0.47169158]
[1771751698653,0.46970917,85.08,85.063,0.47169158]
[1771751698855,0.46970917,85.08,85.062,11.75613082]
[1771751698856,0.46970917,85.108,85.071,0.47169158]
[1771751699157,0.46970917,85.108,85.081,0.47169158]
[1771751700638,0.46970917,85.112,85.091,0.47169158]
[1771751700839,0.46970917,85.112,85.082,11.75336733]
[1771751700840,0.2,85.12,85.101,0.47169158]
[1771751702157,0.66970917,85.12,85.101,0.47169158]
[1771751702355,0.46970917,85.119,85.101,0.47169158]
[1771751709643,0.2,85.12,85.101,0.47169158]
[1771751710141,0.65340587,85.12,85.101,0.47169158]
[1771751710463,0.45340587,85.119,85.101,0.47169158]
[1771751711452,0.45340587,85.119,85.091,12.03644733]
[1771751713163,0.46923971,85.117,85.09,2.97071454]
[1771751713857,0.46923971,85.117,85.091,0.4952372]
[1771751715750,11.7486724,85.116,85.091,0.4952372]
[1771751715946,0.46923971,85.115,85.091,0.4952372]
[1771751717666,0.46923971,85.109,85.078,11.75378429]
[1771751719065,0.46923971,85.109,85.079,0.4952372]
[1771751721372,0.46923971,85.107,85.08,11.75364362]
[1771751723662,0.46923971,85.107,85.08,0.4952372]
[1771751727357,0.46923971,85.107,85.082,0.4952372]
[1771751727861,0.46923971,85.105,85.082,0.4952372]
[1771751732374,11.750329,85.104,85.082,0.4952372]
[1771751732555,0.46923971,85.103,85.082,0.4952372]
[1771751733254,0.46923971,85.103,85.071,11.75479804]
[1771751733449,0.46923971,85.099,85.071,0.4952372]
[1771751736373,0.46923971,85.099,85.07,2.97071454]
[1771751736374,0.46923971,85.097,85.073,0.4952372]
[1771751739380,0.48671418,85.102,85.081,0.4964459]
[1771751740878,12.23745741,85.101,85.081,0.4964459]
[1771751741553,3.17071454,85.12,85.083,0.4964459]
[1771751741554,0.48671418,85.106,85.083,0.4964459]
[1771751741960,11.74986508,85.108,85.083,0.4964459]
[1771751742790,11.74986508,85.108,85.085,0.4964459]
[1771751744384,0.48671418,85.108,85.085,0.4964459]
[1771751759896,0.48671418,85.106,85.085,0.4964459]
[1771751760197,0.48671418,85.099,85.069,0.4964459]
[1771751761485,0.48671418,85.097,85.072,11.75461946]
[1771751761682,3.17071454,85.12,85.081,0.4964459]
[1771751761683,0.48671418,85.107,85.081,0.4964459]
[1771751762491,11.74977675,85.108,85.081,0.4964459]
[1771751762689,0.48671418,85.112,85.091,0.4964459]
[1771751763002,11.74936259,85.111,85.091,0.4964459]
[1771751764183,0.48671418,85.111,85.091,0.4964459]
[1771751765679,11.74950064,85.11,85.091,0.4964459]
[1771751770081,0.48795953,85.118,85.093,0.48542752]
[1771751772006,0.48795953,85.118,85.101,0.48542752]
[1771751782610,0.48795953,85.118,85.095,0.46801885]
[1771751786214,0.46125055,85.116,85.092,0.46801885]
[1771751791712,0.46125055,85.114,85.093,12.21986682]
[1771751792714,0.46125055,85.114,85.094,0.46801885]
[1771751794713,0.46125055,85.114,85.096,0.46801885]
[1771751798822,0.4623669,85.118,85.098,0.45457972]
[1771751813734,0.2,85.12,85.101,0.45457972]
[1771751814922,0.2,85.12,85.103,0.45457972]
[1771751815635,0.2,85.13,85.111,0.45457972]
[1771751817058,0.2,85.13,85.112,11.74922455]
[1771751817243,0.2,85.13,85.113,0.45457972]
[1771751818037,0.2,85.14,85.12,2.97104745]
[1771751818243,0.2,85.14,85.121,0.45457972]
[1771751818623,1e-08,85.15,85.131,0.45457972]
[1771751819455,1e-08,85.15,85.133,0.45457972]
[1771751820422,1e-08,85.15,85.135,0.45457972]
[1771751821546,0.2,85.16,85.141,0.45457972]
[1771751822148,0.4623669,85.159,85.141,0.45457972]
[1771751824846,0.4623669,85.159,85.142,0.45457972]
[1771751825644,0.4623669,85.157,85.131,11.74656998]
[1771751825850,0.4623669,85.157,85.123,11.74770626]
[1771751826043,0.4623669,85.157,85.124,0.45457972]
[1771751826939,0.4623669,85.149,85.118,11.74825893]
[1771751827335,0.4623669,85.149,85.119,0.45457972]
[1771751829842,0.47886862,85.147,85.121,0.47114284]
[1771751830039,0.47886862,85.139,85.111,0.47114284]
[1771751830941,0.47886862,85.139,85.102,0.47114284]
[1771751833651,0.47886862,85.139,85.104,0.46400536]
[1771751834853,0.47886862,85.139,85.11,3.43308309]
[1771751835557,0.47886862,85.139,85.111,0.46400536]
[1771751835858,0.47886862,85.139,85.112,11.74922455]
[1771751836757,0.47886862,85.139,85.113,0.46400536]
[1771751837058,0.47886862,85.139,85.121,0.46400536]
[1771751837255,0.49196185,85.148,85.131,0.46400536]
[1771751837767,0.49196185,85.158,85.131,0.46400536]
[1771751837941,0.49196185,85.158,85.133,0.46400536]
[1771751839767,0.49196185,85.158,85.141,0.46400536]
[1771751846464,0.49196185,85.156,85.133,0.46400536]
[1771751849773,0.49196185,85.154,85.133,0.46400536]
[1771751849990,0.49196185,85.154,85.128,12.21099479]
[1771751850983,0.49196185,85.154,85.129,0.46400536]
[1771751852383,0.49196185,85.152,85.122,0.46400536]
[1771751852679,0.49196185,85.149,85.122,0.46400536]
[1771751853175,0.49196185,85.149,85.124,0.46400536]
[1771751853381,0.49196185,85.149,85.123,11.74770626]
[1771751853382,0.49196185,85.157,85.131,0.46400536]
[1771751854682,11.74295525,85.158,85.141,0.46400536]
[1771751865885,0.2,85.16,85.143,0.48194911]
[1771751873091,0.66681715,85.16,85.143,0.48194911]
[1771751873991,0.46681715,85.159,85.143,0.48194911]
[1771751874776,0.46681715,85.157,85.131,11.74660229]
[1771751875174,0.46681715,85.157,85.132,0.48194911]
[1771751875587,0.2,85.16,85.132,0.48194911]
[1771751876281,0.66681715,85.16,85.133,11.74632633]
[1771751876480,0.66681715,85.16,85.134,0.48194911]
[1771751877897,0.46681715,85.159,85.134,0.48194911]
[1771751879194,0.46681715,85.159,85.136,0.48194911]
[1771751880891,0.46681715,85.159,85.132,0.48194911]
[1771751882490,11.74287794,85.158,85.132,0.48194911]
[1771751882698,0.46681715,85.157,85.132,0.48194911]
[1771751883192,0.46681715,85.155,85.132,0.48194911]
[1771751886981,0.46681715,85.155,85.134,0.48194911]
[1771751891501,0.2,85.16,85.136,0.46240187]
[1771751891813,0.2,85.16,85.141,0.46240187]
[1771751892509,0.68514815,85.16,85.141,0.46240187]
[1771751894508,0.68514815,85.16,85.142,0.46962155]
[1771751898609,0.2,85.16,85.142,0.46962155]
[1771751899210,0.67274862,85.16,85.142,0.46962155]
[1771751912106,0.47274862,85.159,85.142,0.46962155]
[1771751913523,0.2,85.16,85.142,0.46962155]
[1771751915331,0.47274862,85.159,85.142,0.46962155]
[1771751920725,0.2,85.16,85.142,0.46962155]
[1771751924527,0.65271636,85.16,85.142,0.46962155]
[1771751925023,0.2,85.16,85.142,0.46962155]
[1771751925326,0.65271636,85.16,85.142,0.46962155]
[1771751932334,0.65271636,85.16,85.14,2.96721758]
[1771751932335,0.2,85.16,85.144,0.49761422]
[1771751936042,11.74170522,85.167,85.144,0.49761422]
[1771751936539,0.45271636,85.166,85.15,2.96721758]
[1771751936740,0.45271636,85.166,85.151,0.49761422]
[1771751939342,0.45271636,85.166,85.143,11.74494673]
[1771751939548,0.45271636,85.166,85.144,0.49761422]
[1771751941544,0.2,85.17,85.151,0.49761422]
[1771751941742,0.2,85.17,85.16,2.96721888]
[1771751941924,0.2,85.17,85.16,4.6e-06]
[1771751942243,0.65271636,85.17,85.16,4.6e-06]
[1771751942450,0.45271636,85.169,85.16,4.6e-06]
[1771751943630,0.45271636,85.169,85.14,0.14216157]
[1771751943831,0.45271636,85.169,85.151,0.49761422]
[1771751944449,0.2,85.17,85.151,0.49761422]
[1771751944750,0.65271636,85.17,85.151,0.49761422]
[1771751945041,0.45271636,85.169,85.151,0.49761422]
[1771751947233,0.45271636,85.169,85.153,4.7e-06]
[1771751951244,0.45271636,85.169,85.15,14.71119878]
[1771751951245,0.46679016,85.179,85.151,0.28432314]
[1771751951432,0.46679016,85.179,85.16,2.96721758]
[1771751951948,0.46679016,85.179,85.16,2.96606123]
[1771751953230,0.46679016,85.179,85.161,11.74246427]
[1771751953658,0.2,85.19,85.17,2.96606123]
[1771751953949,0.2,85.19,85.171,0.48717022]
[1771751955549,0.65819043,85.19,85.172,0.48717022]
[1771751959634,0.65819043,85.19,85.18,2.96606123]
[1771751960129,0.2,85.19,85.18,3.45323145]
[1771751960948,0.2,85.2,85.182,0.33320984]
[1771751961155,0.2,85.2,85.19,2.96606123]
[1771751961557,0.45819043,85.199,85.186,0.33320984]
[1771751961854,0.45819043,85.199,85.181,12.35724019]
[1771751962355,0.45819043,85.199,85.182,0.33320984]
[1771751963364,0.45819043,85.199,85.181,11.73970721]
[1771751966366,0.2,85.21,85.191,0.33320984]
[1771751966546,0.45819043,85.209,85.191,0.33320984]
[1771751967050,0.45819043,85.209,85.2,2.96606123]
[1771751974767,0.45819043,85.209,85.196,11.73764026]
[1771751974949,0.45819043,85.209,85.191,12.07141989]
[1771751975149,0.45819043,85.209,85.192,0.33320984]
[1771751979455,32.49521257,85.24,85.2,15.18856674]
[1771751979751,32.49521257,85.24,85.201,0.48544731]
[1771751979962,11.73213822,85.236,85.201,0.48544731]
[1771751980264,11.73213822,85.236,85.211,0.48544731]
[1771751980459,2.96606123,85.23,85.2,14.70311943]
[1771751981451,0.47610733,85.227,85.2,11.7370582]
[1771751984169,0.47610733,85.227,85.196,11.73764026]
[1771751984771,0.47610733,85.227,85.196,12.22308757]
[1771751985267,29.32929762,85.239,85.187,29.34707823]
[1771751985268,0.47610733,85.225,85.2,2.96606123]
[1771751985756,0.47610733,85.225,85.201,0.48544731]
[1771751988471,0.47610733,85.225,85.201,12.22231301]
[1771751991568,0.47610733,85.225,85.202,0.48544731]
[1771751991768,0.47610733,85.225,85.203,11.73667593]
[1771751991967,0.47610733,85.225,85.203,12.22212324]
[1771751992551,0.47610733,85.225,85.204,0.48544731]
[1771751993673,100.40478474,85.238,85.191,0.28432314]
[1771751993674,0.47610733,85.223,85.199,12.22264941]
[1771751995666,0.47610733,85.223,85.2,0.48544731]
[1771751995975,0.47610733,85.223,85.201,0.48544731]
[1771751996563,0.47610733,85.219,85.181,0.48544731]
[1771751996965,0.47610733,85.219,85.19,2.96606123]
[1771751997169,0.47610733,85.219,85.191,0.48544731]
[1771751997565,0.47610733,85.217,85.191,0.48544731]
[1771751997966,0.47610733,85.217,85.191,12.22373744]
[1771751998164,0.47610733,85.217,85.192,0.48544731]
[1771751999668,0.47610733,85.215,85.183,11.7394305]
[1771751999868,0.47610733,85.213,85.183,11.7394305]
[1771752000269,0.47610733,85.199,85.17,11.74116406]
[1771752002879,0.47610733,85.199,85.17,14.70722529]
[1771752003884,0.47610733,85.199,85.17,11.74116406]
[1771752004184,0.47610733,85.199,85.17,14.70722529]
[1771752006082,0.47610733,85.189,85.151,0.48544731]
[1771752006271,0.47610733,85.179,85.146,0.48544731]
[1771752006671,2.96606123,85.17,85.146,0.48544731]
[1771752006876,0.47610733,85.169,85.141,12.23066994]
[1771752009484,0.47610733,85.169,85.142,0.46743307]
[1771752010680,0.47610733,85.169,85.144,0.46743307]
[1771752013877,0.47610733,85.169,85.145,11.74467085]
[1771752014086,0.47610733,85.169,85.146,0.46009451]
[1771752014483,0.48170924,85.177,85.151,0.46009451]
[1771752014686,100.40478474,85.178,85.161,0.46009451]
[1771752016592,100.40478474,85.178,85.163,0.46009451]
[1771752016989,0.48170924,85.193,85.171,0.46009451]
[1771752017193,0.48170924,85.204,85.181,0.46009451]
[1771752019478,0.48170924,85.204,85.172,0.46009451]
[1771752023199,0.48170924,85.204,85.174,0.46009451]
[1771752023396,0.48170924,85.204,85.181,0.46009451]
[1771752024301,0.48170924,85.204,85.183,0.46009451]
[1771752024485,0.48170924,85.204,85.182,11.73956939]
[1771752025800,11.73598723,85.208,85.183,0.46009451]
[1771752026003,0.48170924,85.207,85.183,0.46009451]
[1771752027784,0.48170924,85.207,85.183,12.19947566]
[1771752027986,0.48170924,85.207,85.184,0.46009451]
[1771752032007,0.48170924,85.207,85.185,11.73915595]
[1771752032588,2.96720311,85.2,85.173,11.74073239]
[1771752032808,0.48170924,85.199,85.173,11.74073239]
[1771752033507,0.48170924,85.199,85.173,12.2008269]
[1771752034613,0.48170924,85.198,85.174,0.46009451]
[1771752037607,0.48170924,85.196,85.174,0.46009451]
[1771752038918,11.73487216,85.217,85.181,0.47402813]
[1771752040912,0.45815644,85.214,85.183,0.47402813]
[1771752043316,0.45815644,85.212,85.185,0.47402813]
[1771752046722,0.45815644,85.21,85.185,0.47402813]
[1771752052522,12.19400593,85.209,85.185,0.47402813]
[1771752052734,0.45815644,85.208,85.185,0.47402813]
[1771752063741,0.45815644,85.208,85.186,11.73901814]
[1771752064034,0.45815644,85.208,85.187,0.47402813]
[1771752064238,0.45815644,85.206,85.166,0.47402813]
[1771752064438,0.45815644,85.199,85.167,0.47402813]
[1771752065938,0.45815644,85.189,85.16,0.47402813]
[1771752067235,0.45815644,85.187,85.16,0.47402813]
[1771752067427,0.45815644,85.186,85.16,0.47402813]
[1771752070242,12.46621175,85.187,85.173,0.27310951]
[1771752070447,0.5,85.206,85.18,2.96720311]
[1771752071526,0.5,85.206,85.172,11.74094772]
[1771752073954,0.5,85.206,85.171,0.28432314]
[1771752075452,0.5,85.206,85.172,11.74094772]
[1771752076050,0.5,85.204,85.172,11.74094772]
[1771752080356,0.5,85.204,85.18,2.96489875]
[1771752080742,0.5,85.204,85.172,41.09331704]
[1771752087056,0.5,85.204,85.18,2.96489875]